fUSD/lending_fUSD_20240530
["ID","MTS","AMOUNT","RATE_DAILY","PERIOD"]
[328249798,1717103451825,-150.0,0.00033284,2]
[328249799,1717103451834,-154.59322516,0.00033286,7]
[328249800,1717103451843,-280.0,0.00033288,4]
[328249801,1717103451853,-8928.47711744,0.00033297,2]
[328249802,1717103451863,-231.89514109,0.00033298,4]
[328249803,1717103451872,-3200.0,0.00033298,2]
[328249804,1717103451882,-155.53768867,0.00033298,4]
[328249805,1717103451891,-156.65379792,0.00033298,4]
[328249806,1717103451900,-466.21506399,0.00033298,4]
[328249807,1717103451910,-155.0,0.00033298,4]
[328249808,1717103451919,-544.72756964,0.00033298,4]
[328249809,1717103451928,-198.07010589,0.00033298,4]
[328249810,1717103451938,-233.89339736,0.00033298,4]
[328249811,1717103451947,-364.27737293,0.00033298,4]
[328249812,1717103451957,-5202.88599997,0.00033298,4]
[328249813,1717103451966,-155.50086001,0.00033298,4]
[328249814,1717103451975,-360.93902952,0.00033298,30]
[328249815,1717103451984,-155.92483155,0.00033298,4]
[328249816,1717103451993,-155.0,0.00033298,2]
[328249817,1717103452003,-225.1610053,0.00033298,4]
[328249818,1717103452012,-373.00144814,0.00033298,4]
[328249819,1717103452021,-1382.70872343,0.00033298,4]
[328249820,1717103452030,-489.24399676,0.00033298,4]
[328249821,1717103452040,-266.22124095,0.00033298,4]
[328249822,1717103452049,-1348.13205731,0.00033298,4]
[328249823,1717103452058,-210.44648753,0.00033298,4]
[328249824,1717103452067,-1785.02379447,0.00033298,4]
[328249825,1717103452076,-6784.42006831,0.00033298,4]
[328249826,1717103452086,-666.90775822,0.00033298,2]
[328249827,1717103452095,-492.29897975,0.00033298,4]
[328249828,1717103452105,-195.23244925,0.00033298,4]
[328249829,1717103452114,-12662.80967559,0.00033298,5]
[328249830,1717103452124,-20212.48021067,0.00033298,4]
[328249831,1717103452133,-328.6972412,0.00033298,4]
[328249832,1717103452142,-480.94869717,0.00033298,4]
[328249833,1717103452151,-7066.52057408,0.00033298,4]
[328249834,1717103452161,-219.78136042,0.00033298,4]
[328249835,1717103452170,-1000.0,0.00033298,4]
[328249836,1717103452180,-155.0,0.00033298,4]
[328249837,1717103452189,-219.09683908,0.00033298,4]
[328249838,1717103452198,-7521.94316228,0.00033298,4]
[328249839,1717103452208,-2435.39188221,0.00033298,2]
[328249840,1717103452217,-155.0,0.00033298,4]
[328249841,1717103452226,-619.40919627,0.00033298,4]
[328249842,1717103452236,-1228.02339539,0.00033298,4]
[328249843,1717103452245,-326.03857462,0.00033298,4]
[328249844,1717103452254,-3288.60966713,0.00033298,2]
[328249845,1717103452263,-843.41914682,0.00033298,2]
[328249846,1717103452272,-4282.56969523,0.00033298,4]
[328249847,1717103452282,-9194.11603614,0.00033298,2]
[328249848,1717103452291,-155.23820873,0.00033298,4]
[328249849,1717103452300,-3616.66384245,0.00033298,4]
[328249850,1717103452309,-310.78781986,0.00033298,4]
[328249851,1717103452319,-155.000002,0.00033298,4]
[328249852,1717103452328,-216.5165214,0.00033298,4]
[328249853,1717103452337,-367.90327309,0.00033298,4]
[328249854,1717103452346,-1093.38362618,0.00033299,4]
[328249855,1717103452355,-150.0,0.00033299,7]
[328249856,1717103452364,-150.0,0.00033299,7]
[328249857,1717103452374,-150.0,0.00033299,7]
[328249858,1717103452383,-150.0,0.00033299,7]
[328249859,1717103452392,-150.0,0.00033299,7]
[328249860,1717103452401,-157.50808279,0.00033299,7]
[328249861,1717103452410,-236.56378768,0.000333,30]
[328249862,1717103452419,-1417.05027785,0.000333,5]
[328249863,1717103452428,-110435.89873277,0.000333,9]
[328249864,1717103452437,-955266.25061578,0.000333,5]
[328249865,1717103452890,-73506.76189598,0.000333,5]
[328249866,1717103453369,410.2719242,0.00013384,2]
[328249867,1717103453883,19751.57634227,0.00013384,2]
[328249868,1717103453949,946.5832297,0.00013384,2]
[328249870,1717103455054,362.51321978,0.00013384,2]
[328249871,1717103458995,2608.07457883,0.00013116,2]
[328249872,1717103462204,37067.30977127,0.00013384,2]
[328249873,1717103540821,-500.0,0.00013109,2]
[328249874,1717103540847,-500.0,0.00013109,2]
[328249875,1717103540871,-500.0,0.00013109,2]
[328249876,1717103540896,-567.0,0.00013109,2]
[328249877,1717103540921,-1953.43043877,0.00013116,2]
[328249878,1717103540945,-45979.56956123,0.00013384,2]
[328249917,1717104351113,-337.62197281,0.00010035,2]
[328249918,1717104351132,-415.03530868,0.00010036,2]
[328249919,1717104414108,-150.43181887,0.00010035,2]
[328249920,1717104553134,-345.990649,0.00010035,2]
[328249921,1717104553156,-551.87317785,0.00010035,2]
[328249922,1717104553174,-526.80774176,0.00010038,2]
[328249939,1717104633161,-131.19225824,0.00010038,2]
[328249940,1717104633171,-161.03410793,0.00010038,2]
[328249941,1717104633180,-784.97137019,0.00013249,2]
[328249942,1717104633189,-229.04226364,0.0001325,2]
[328249943,1717104633227,-2770.95773636,0.0001325,2]
[328249944,1717104633237,-92299.9754055,0.00013384,2]
[328249945,1717104633246,-9714.93934684,0.00015599,2]
[328249946,1717104633255,-548.0,0.000156,2]
[328249947,1717104633265,-2665.0,0.000156,2]
[328249948,1717104633274,-3000.0,0.0001575,2]
[328249949,1717104633283,-3000.0,0.0001825,2]
[328249950,1717104633292,-1160.05517033,0.00019451,2]
[328249951,1717104633303,-634.50759008,0.00020748,2]
[328249952,1717104633312,-863.06900647,0.00020749,2]
[328249953,1717104633321,-3000.0,0.0002075,2]
[328249954,1717104633331,-4429.8712,0.000224,2]
[328249955,1717104633340,-3000.0,0.0002325,2]
[328249956,1717104633349,-156.4,0.00024384,2]
[328249957,1717104633358,-155.66,0.00024384,2]
[328249958,1717104633368,-3000.0,0.0002575,2]
[328249959,1717104633378,-150.0,0.00027,2]
[328249960,1717104633388,-154.17,0.00027156,2]
[328249961,1717104633397,-337.62197281,0.00028334,2]
[328249962,1717104633407,-659.06,0.00028335,2]
[328249963,1717104633416,-174.89,0.00028443,2]
[328249964,1717104633425,-250.0,0.00028479,2]
[328249965,1717104633434,-151.0,0.00029275,2]
[328249966,1717104633443,-250.0,0.00029287,2]
[328249967,1717104633452,-154.17,0.00029546,2]
[328249968,1717104633461,-153.82452483,0.00029705,2]
[328249969,1717104633471,-225.11205539,0.00029706,2]
[328249970,1717104633480,-1000.0,0.00029781,2]
[328249971,1717104633490,-546.88954446,0.00029833,2]
[328249972,1717104633499,-292.53328536,0.00029878,2]
[328249973,1717104633509,-2007.84808752,0.000299,2]
[328249974,1717104633519,-164.32334778,0.00029913,2]
[328249975,1717104633528,-225.11205539,0.00029916,2]
[328249976,1717104633537,-292.53328536,0.00030014,7]
[328249977,1717104633546,-546.88954446,0.00030031,7]
[328249978,1717104633555,-160.07720588,0.00030122,7]
[328249979,1717104633565,-546.88954446,0.00030161,7]
[328249980,1717104633575,-292.53328536,0.00030169,7]
[328249981,1717104633587,-225.11205539,0.00030192,7]
[328249982,1717104633596,-292.53328536,0.0003025,7]
[328249983,1717104633605,-153.82452483,0.00030423,7]
[328249986,1717104633615,-155.03733759,0.00030464,7]
[328249989,1717104633624,-292.53328536,0.00030558,7]
[328249991,1717104633633,-292.53328536,0.00030659,7]
[328249993,1717104633643,-151.97604568,0.00030699,7]
[328249995,1717104633652,-292.53328536,0.00030703,7]
[328249997,1717104633661,-152.9226701,0.00030704,7]
[328249999,1717104633670,-161.32366635,0.00030878,7]
[328250001,1717104633680,-156.4,0.00031007,2]
[328250003,1717104633689,-225.11205539,0.00031009,7]
[328250005,1717104633698,-385.3410879,0.00031047,7]
[328250007,1717104633707,-151.97604568,0.00031122,7]
[328250009,1717104633716,-546.88954446,0.00031269,7]
[328250011,1717104633725,-154.59322516,0.00031277,7]
[328250013,1717104633735,-151.97604568,0.00031299,7]
[328250015,1717104633744,-156.67648749,0.00031451,7]
[328250017,1717104633754,-225.11205539,0.00031504,7]
[328250019,1717104633764,-385.3410879,0.00031578,7]
[328250021,1717104633773,-232.06770825,0.00031622,7]
[328250023,1717104633782,-150.03381758,0.00031712,7]
[328250025,1717104633791,-150.0,0.00031714,2]
[328250027,1717104633801,-155.47784374,0.00031717,7]
[328250029,1717104633810,-154.59322516,0.00031745,7]
[328250031,1717104633821,-153.82452483,0.00031804,7]
[328250033,1717104633830,-546.88954446,0.00031853,7]
[328250035,1717104633840,-225.11205539,0.00031876,7]
[328250037,1717104633849,-659.06,0.00031876,2]
[328250039,1717104633858,-546.88954446,0.00031895,7]
[328250041,1717104633867,-400.0,0.000319,11]
[328250042,1717104633876,-314.4238,0.000319,2]
[328250044,1717104633885,-99149.04495765,0.000319,7]
[328250046,1717104633895,-7500.0,0.000319,2]
[328250048,1717104633904,-170.58240984,0.00031912,7]
[328250050,1717104633914,-161.11298454,0.00031917,7]
[328250052,1717104633923,-156.67648749,0.00031934,7]
[328250054,1717104633933,-154.17,0.00031936,2]
[328250056,1717104633942,-292.53328536,0.00031943,7]
[328250058,1717104633951,-150.0,0.00031983,2]
[328250060,1717104633962,-900.0,0.00032,11]
[328250062,1717104633972,-1054.43542803,0.00032,2]
[328250064,1717104633981,-1054.43542803,0.00032,2]
[328250066,1717104633990,-1054.43542803,0.00032,2]
[328250068,1717104634000,-1054.43542803,0.00032,2]
[328250070,1717104634009,-1054.43542803,0.00032,2]
[328250072,1717104634019,-1054.43542803,0.00032,2]
[328250074,1717104634029,-1054.43542803,0.00032,2]
[328250076,1717104634038,-1054.43542803,0.00032,2]
[328250078,1717104634048,-1054.43542803,0.00032,2]
[328250080,1717104634058,-1054.43542803,0.00032,2]
[328250082,1717104634068,-1054.43542803,0.00032,2]
[328250084,1717104634077,-1054.43542803,0.00032,2]
[328250086,1717104634088,-1054.43542803,0.00032,2]
[328250088,1717104634104,-1054.43542803,0.00032,2]
[328250090,1717104634115,-699.23991524,0.00032,2]
[328250093,1717104634129,-355.19551279,0.00032,2]
[328250095,1717104634139,-947.07791478,0.00032,2]
[328250096,1717104634183,-107.35751325,0.00032,2]
[328250097,1717104634193,-1054.43542803,0.00032,2]
[328250098,1717104634203,-1054.43542803,0.00032,2]
[328250099,1717104634212,-1054.43542803,0.00032,2]
[328250100,1717104634222,-580.52703564,0.00032,2]
[328250101,1717104634233,-473.90839239,0.00032,2]
[328250102,1717104634242,-791.19791111,0.00032,2]
[328250103,1717104634254,-263.23751692,0.00032,2]
[328250104,1717104634264,-1030.98060774,0.00032,2]
[328250105,1717104634276,-23.45482029,0.00032,2]
[328250106,1717104634285,-1054.43542803,0.00032,2]
[328250107,1717104634294,-475.33627561,0.00032,2]
[328250108,1717104634314,-579.09915242,0.00032,2]
[328250109,1717104634325,-1054.43542803,0.00032,2]
[328250110,1717104634337,-1054.43542803,0.00032,2]
[328250111,1717104634346,-1054.43542803,0.00032,2]
[328250112,1717104634356,-1054.43542803,0.00032,2]
[328250113,1717104634365,-1054.43542803,0.00032,2]
[328250114,1717104634375,-1054.43542803,0.00032,2]
[328250115,1717104634384,-1054.43542803,0.00032,2]
[328250116,1717104634392,-1054.43542803,0.00032,2]
[328250117,1717104634402,-1054.43542803,0.00032,2]
[328250118,1717104634410,-1054.43542803,0.00032,2]
[328250119,1717104634420,-1054.43542803,0.00032,2]
[328250120,1717104634429,-1054.43542803,0.00032,2]
[328250121,1717104634440,-1054.43542803,0.00032,2]
[328250122,1717104634449,-1054.43542803,0.00032,2]
[328250123,1717104634458,-1054.43542803,0.00032,2]
[328250124,1717104634468,-1054.43542803,0.00032,2]
[328250125,1717104634477,-1054.43542803,0.00032,2]
[328250126,1717104634486,-1054.43542803,0.00032,2]
[328250127,1717104634496,-1054.43542803,0.00032,2]
[328250128,1717104634505,-1054.43542803,0.00032,2]
[328250129,1717104634515,-279.91832792,0.00032,2]
[328250130,1717104634527,-774.51710011,0.00032,2]
[328250131,1717104634537,-1054.43542803,0.00032,2]
[328250132,1717104634546,-1054.43542803,0.00032,2]
[328250133,1717104634556,-1054.43542803,0.00032,2]
[328250134,1717104634565,-1054.43542803,0.00032,2]
[328250135,1717104634574,-1054.43542803,0.00032,2]
[328250136,1717104634583,-292.53328536,0.0003203,7]
[328250137,1717104634593,-1400.0,0.000321,11]
[328250138,1717104634603,-150.0,0.00032119,2]
[328250139,1717104634613,-150.0,0.00032121,2]
[328250140,1717104634622,-151.97604568,0.00032126,7]
[328250141,1717104634631,-151.97604568,0.00032144,7]
[328250142,1717104634640,-633.37383512,0.00032188,2]
[328250143,1717104634649,-1259.90770283,0.000322,11]
[328250157,1717104643279,-640.09229717,0.000322,11]
[328250158,1717104643288,-2400.0,0.000323,11]
[328250159,1717104643297,-319.57287822,0.000323,2]
[328250160,1717104643306,-633.37383511,0.00032333,2]
[328250161,1717104643315,-157.67621734,0.0003238,7]
[328250162,1717104643324,-6896.2045177,0.00032398,2]
[328250163,1717104643508,-2247.65174431,0.00032398,2]
[328250164,1717104643749,-2838.24206432,0.00032398,2]
[328250369,1717104646375,-1296.71520101,0.0003238,2]
[328250370,1717104646385,-329.8909271,0.00032398,2]
[328250371,1717104646584,-5136.83833687,0.00032398,2]
[328250372,1717104646639,-1038.84,0.00032398,2]
[328250373,1717104646682,-44168.19794733,0.00032398,2]
[328250413,1717104669091,158.69,0.0003194,120]
[328250419,1717104970934,1506.50284058,0.00024,30]
[328250420,1717105037986,872.07302801,0.0003,30]
[328250422,1717105327980,2088.0,0.00031,30]
[328250424,1717105530102,-287.98921416,0.000125,2]
[328250425,1717105530122,-150.0,0.00012959,2]
[328250426,1717105530140,-160.8020285,0.0001299,2]
[328250427,1717105530161,-152.49,0.0001299,2]
[328250428,1717105530181,-152.49,0.0001299,2]
[328250429,1717105530202,-152.49,0.0001299,2]
[328250430,1717105530221,-1424.67156861,0.0001299,2]
[328250431,1717105530242,-306.83536219,0.00012998,2]
[328250432,1717105530263,-92.9011865,0.00012998,2]
[328250433,1717105646110,-62.0988135,0.00012998,2]
[328250434,1717105646348,-790.98303269,0.00012998,2]
[328250435,1717105646371,-10052.7329512,0.00013,2]
[328250453,1717105832363,-160.8020285,0.0001299,2]
[328250454,1717105832375,-152.48,0.0001299,2]
[328250455,1717105832387,-152.48,0.0001299,2]
[328250456,1717105832400,-44.537982,0.00012997,2]
[328250457,1717105832414,-599.89049949,0.00012997,2]
[328250458,1717105832451,-512.85,0.00012997,2]
[328250459,1717105832509,-362.84660977,0.00012997,2]
[328250460,1717105832526,-303.8,0.00012997,2]
[328250461,1717105832668,-15011.14076,0.00012997,2]
[328250462,1717105832710,-1595.22360914,0.00012997,2]
[328250463,1717105832743,-310.82808125,0.00012997,2]
[328250478,1717105838344,-1351.99637627,0.00012989,2]
[328250480,1717105838354,-782.16911367,0.00012997,2]
[328250481,1717105838363,-44954.16914785,0.00013,2]
[328250482,1717105838419,-22230.81641486,0.00013,2]
[328250483,1717105838431,-4572.78453988,0.00013,2]
[328250484,1717105838443,-10001.0,0.00013,2]
[328250485,1717105838454,-10816.66281497,0.00013,2]
[328250486,1717105838494,-60504.6405431,0.00013,2]
[328250487,1717105838570,-284.51111494,0.00013,2]
[328250488,1717105838583,-775.896,0.00013,2]
[328250489,1717105838678,-965.1429323,0.00013,2]
[328250490,1717105838689,-751.74894138,0.00013,2]
[328250491,1717105838701,-795.2682055,0.00013,2]
[328250492,1717105838712,-1007.38297438,0.00013,2]
[328250493,1717105838723,-633.84,0.00013,2]
[328250494,1717105838734,-10859.41738551,0.00013,2]
[328250496,1717105838745,-688.30520627,0.00013,2]
[328250503,1717105841187,-680.17549575,0.00013,2]
[328250504,1717105841203,-468.67992952,0.00013,2]
[328250505,1717105841214,-1058.52056441,0.00013,2]
[328250506,1717105841226,-342.67,0.00013,2]
[328250507,1717105841237,-378.1299995,0.00013,2]
[328250508,1717105841248,-1088.59857476,0.00013,2]
[328250509,1717105841259,-255.63133942,0.00013,2]
[328250510,1717105841270,-994.90013021,0.00013,2]
[328250511,1717105841281,-1721.51,0.00013,2]
[328250512,1717105842060,-79074.22567456,0.00013,2]
[328250513,1717105842071,-681.33262632,0.00013,2]
[328250514,1717105842083,-4855.09641126,0.00013,2]
[328250515,1717105842094,-261954.75754372,0.00013,2]
[328250516,1717105842129,-5069.60930225,0.00013,2]
[328250517,1717105842140,-27616.12792005,0.00013,2]
[328250522,1717105843659,-3778.7269528,0.00013,2]
[328250523,1717105843671,-1200.38013541,0.00013,2]
[328250524,1717105843682,-4346.61522739,0.00013,2]
[328250525,1717105843845,-42650.57999998,0.00013,2]
[328250526,1717105843856,-13878.73206701,0.00013,2]
[328250535,1717105846460,-100.47327908,0.00013,2]
[328250536,1717105846577,-0.00738965,0.00013,2]
[328250551,1717106368931,3561.49,0.00033,90]
[328250556,1717106854171,-155.0,0.00012797,2]
[328250557,1717106854192,-158.86276178,0.000128,2]
[328250558,1717106854212,-52.54270856,0.000129,2]
[328250575,1717107031677,-3843.32508297,0.00012869,2]
[328250576,1717107031779,-2346.13088512,0.00012869,2]
[328250577,1717107032046,-1079.8739065,0.00012869,2]
[328250578,1717107037599,-3423.1360578,0.00012869,2]
[328250585,1717107037703,-8830.82072293,0.00012869,2]
[328250587,1717107037712,-44718.0,0.0001287,2]
[328250589,1717107037722,-343.87878,0.0001287,2]
[328250591,1717107037731,-122.95981949,0.000129,2]
[328250593,1717107037741,-854.7824293,0.000129,2]
[328250595,1717107037750,-1560.14006019,0.000129,2]
[328250597,1717107037760,-152.76,0.0001299,2]
[328250599,1717107037770,-166.92261338,0.00012998,2]
[328250601,1717107037780,-366.40366347,0.00012999,2]
[328250603,1717107037789,-79645.3319112,0.00013,2]
[328250605,1717107037800,-3275.23508451,0.00013,2]
[328250614,1717107037923,-5403.48247186,0.00013,2]
[328250620,1717107041442,-702.7666009,0.00013,2]
[328250626,1717107042746,-1032.29085156,0.00013,2]
[328250628,1717107045772,-88034.24079566,0.00013,2]
[328250637,1717107046240,-5695.38554123,0.00013,2]
[328250640,1717107587294,700.0,0.000128,4]
[328250641,1717107589392,1400.0,0.000129,4]
[328250645,1717107935412,2834.99317515,0.0003,120]
[328250646,1717107948113,-1519.66002276,0.00012898,2]
[328250647,1717107997100,-150.43181887,0.00012897,2]
[328250648,1717108002795,1000.0,0.00033,120]
[328250649,1717108048888,1067.991724,0.00033,120]
[328250650,1717108049029,500.0,0.000128,4]
[328250651,1717108051112,1100.0,0.000129,4]
[328250652,1717108055403,1000.0,0.00033,120]
[328250673,1717108231919,-337.62197281,0.00012869,2]
[328250674,1717108231929,-286.56565,0.0001287,2]
[328250675,1717108231938,-375.5271,0.000129,2]
[328250676,1717108231947,-37.07102719,0.000129,2]
[328250677,1717108232041,-129.43912381,0.000129,2]
[328250678,1717108232051,-743.43437619,0.000129,2]
[328250814,1717108240815,-305.86343309,0.000129,2]
[328250826,1717108240935,-780.58517994,0.000129,2]
[328250876,1717108243069,-1589.74640912,0.000129,2]
[328250880,1717108246236,-2145.44282206,0.000129,2]
[328250881,1717108246249,-2565.08,0.000129,2]
[328250888,1717108468939,1978.61138425,0.00015,10]
[328250891,1717109147230,-225.52,0.00011383,2]
[328250892,1717109147250,-530.20472803,0.00012735,2]
[328250893,1717109147270,-1988.84653071,0.000128,2]
[328250895,1717109229190,500.0,0.000128,4]
[328250896,1717109231283,1000.0,0.000129,4]
[328250897,1717109244118,-701.953689,0.00012736,2]
[328250898,1717109244139,-17.01286929,0.000128,2]
[328250899,1717109244158,-277.887,0.000128,2]
[328250900,1717109244180,-9908.9612391,0.000128,2]
[328250918,1717109432056,-322.13804,0.0001277,2]
[328250919,1717109432065,-150.0,0.00012799,2]
[328250920,1717109432075,-896.8696,0.000128,2]
[328250921,1717109432185,-402.23142703,0.000128,2]
[328250922,1717109432310,-13783.18812063,0.000128,2]
[328250923,1717109432439,-1138.03485442,0.000128,2]
[328250934,1717109438682,-25171.94727704,0.000128,2]
[328250935,1717109441089,-343.05190549,0.000128,2]
[328250936,1717109441101,-971.46354502,0.000128,2]
[328250938,1717109441114,-685.80439866,0.000128,2]
[328251030,1717109443459,-13517.83383261,0.000128,2]
[328251031,1717109443469,-370.0328,0.000128,2]
[328251032,1717109443478,-131163.4526,0.000128,2]
[328251033,1717109443488,-176.15685438,0.00012869,2]
[328251034,1717109443497,-150.0,0.00012877,2]
[328251035,1717109443507,-178.84589632,0.00012898,2]
[328251036,1717109443516,-306.83536219,0.00012899,2]
[328251037,1717109443526,-166.54369999,0.000129,2]
[328251038,1717109443535,-232.59574473,0.000129,2]
[328251039,1717109443549,-318.97806811,0.000129,2]
[328251040,1717109443558,-1018.42,0.000129,2]
[328251041,1717109443568,-234.53919679,0.000129,2]
[328251042,1717109443578,-34741.2960734,0.0001299,2]
[328251043,1717109443588,-5701.4030131,0.0001299,2]
[328251044,1717109443598,-685.8044,0.0001299,2]
[328251045,1717109443607,-195.66906048,0.0001299,2]
[328251046,1717109443618,-152.89,0.0001299,2]
[328251047,1717109443628,-607.9450021,0.0001299,2]
[328251048,1717109443637,-193.50479954,0.00012999,2]
[328251049,1717109443647,-5883.27384355,0.00012999,2]
[328251050,1717109443656,-8145.99,0.00012999,2]
[328251051,1717109443665,-933232.46441472,0.00013,2]
[328251052,1717109446269,-217563.03408762,0.00013,2]
[328251053,1717109446280,-499.99,0.00013,2]
[328251054,1717109446289,-152.050105,0.00013,2]
[328251055,1717109446299,-151.0,0.00013,2]
[328251056,1717109446308,-151.0,0.00013,2]
[328251057,1717109446318,-151.391394,0.00013,2]
[328251058,1717109446327,-151.0,0.00013,2]
[328251059,1717109446337,-151.0,0.00013,2]
[328251060,1717109446346,-151.0,0.00013,2]
[328251061,1717109446356,-723.08,0.00013,2]
[328251062,1717109446365,-150.99,0.00013,2]
[328251063,1717109446376,-151.0,0.00013,2]
[328251064,1717109446386,-151.0,0.00013,2]
[328251065,1717109446396,-151.0,0.00013,2]
[328251066,1717109446406,-151.0,0.00013,2]
[328251067,1717109446416,-151.0,0.00013,2]
[328251068,1717109446426,-177.03766,0.00013,2]
[328251069,1717109446436,-151.0,0.00013,2]
[328251070,1717109446446,-151.0,0.00013,2]
[328251071,1717109446456,-153.865542,0.00013,2]
[328251072,1717109446465,-151.0,0.00013,2]
[328251073,1717109446475,-999.99,0.000131,2]
[328251074,1717109446485,-250.0,0.00013146,2]
[328251075,1717109446496,-375.76,0.00013148,2]
[328251076,1717109446507,-1000.0,0.00013236,2]
[328251077,1717109446517,-166.51015098,0.000133,2]
[328251078,1717109446530,-399.75,0.00013397,2]
[328251079,1717109446542,-250.0,0.00013414,2]
[328251080,1717109446553,-881.83633624,0.000135,2]
[328251081,1717109446562,-169.42,0.00013609,2]
[328251082,1717109446572,-225.52,0.00013647,2]
[328251083,1717109446582,-1500.0,0.000138,5]
[328251084,1717109446593,-1649.64886196,0.000139,5]
[328251085,1717109446606,-350.35113804,0.000139,5]
[328251086,1717109446618,-152.89,0.0001399,2]
[328251088,1717109446627,-152.89,0.0001399,2]
[328251089,1717109446636,-152.89,0.0001399,2]
[328251090,1717109446646,-155.0,0.00013998,2]
[328251091,1717109446655,-790.98303269,0.00013999,2]
[328251092,1717109446665,-997.3685407,0.00014,2]
[328251093,1717109446677,-975.00451163,0.00014,2]
[328251094,1717109446721,-2565.08,0.00014,2]
[328251095,1717110337168,-274.47110486,0.00012866,2]
[328251096,1717110450129,-366.4645428,0.0001286,2]
[328251103,1717110632380,-211.06,0.00012592,2]
[328251104,1717110632392,-155.0,0.00012854,2]
[328251105,1717110632401,-155.0,0.00012855,2]
[328251106,1717110632410,-26.37728168,0.0001289,2]
[328251107,1717110632422,-1398.29428693,0.0001289,2]
[328251108,1717110632431,-22.8938102,0.00012898,2]
[328251109,1717110632442,-558.15546194,0.00012898,2]
[328251110,1717110632453,-137.26570044,0.00012898,2]
[328251111,1717110632463,-150.0,0.00012899,2]
[328251112,1717110632472,-979.33605863,0.000129,2]
[328251113,1717110632483,-994.53502422,0.000129,2]
[328251114,1717110632494,-430.0056,0.000129,2]
[328251115,1717110632506,-2236.40774336,0.000129,2]
[328251116,1717110632516,-6393.22799159,0.000129,2]
[328251117,1717110632528,-15610.13498772,0.000129,2]
[328251118,1717110632539,-5615.33786295,0.000129,2]
[328251119,1717110632549,-261.15578167,0.000129,2]
[328251120,1717110632561,-59506.73754986,0.000129,2]
[328251121,1717110632705,-200.0,0.000138,5]
[328251122,1717110632726,-176.15685437,0.00013859,2]
[328251123,1717110632736,-421.22614,0.0001386,2]
[328251124,1717110632746,-499.99,0.0001386,2]
[328251125,1717110632756,-1027.4565,0.00013889,2]
[328251126,1717110632765,-808.34997485,0.000139,2]
[328251127,1717110632775,-379.4439,0.000139,2]
[328251128,1717110632785,-166.51015098,0.000139,2]
[328251129,1717110632795,-500.0,0.000139,5]
[328251130,1717110632804,-196.58513752,0.000139,2]
[328251131,1717110632814,-1000.0,0.0001393,2]
[328251132,1717110632823,-1115.1487,0.0001393,2]
[328251133,1717110632832,-57074.5988773,0.00013989,2]
[328251134,1717110632842,-9947.8840913,0.00013989,2]
[328251135,1717110632851,-844.3034342,0.00013989,2]
[328251136,1717110632861,-2079.9566747,0.00013989,2]
[328251137,1717110632871,-195.66906048,0.0001399,2]
[328251138,1717110632881,-152.89,0.0001399,2]
[328251139,1717110632891,-155.0,0.00013998,2]
[328251140,1717110632901,-2619.54829743,0.00013999,2]
[328251141,1717110632911,-106237.09456181,0.00014,2]
[328251142,1717110632926,-3670.67163834,0.00014,2]
[328251143,1717110632938,-3904.89684488,0.00014,2]
[328251144,1717110632965,-1501.57922295,0.00014,2]
[328251145,1717110632976,-49347.91675046,0.00014,2]
[328251146,1717110632987,-1275.75232492,0.00014,2]
[328251147,1717110632999,-903.55095595,0.00014,2]
[328251148,1717110633010,-518.40021227,0.00014,2]
[328251149,1717110633022,-620.96421244,0.00014,2]
[328251150,1717110633034,-1181.42468244,0.00014,2]
[328251151,1717110633806,-4121.07153573,0.00014,2]
[328251154,1717110633818,-10781.89455129,0.00014,2]
[328251156,1717110633829,-91011.1790288,0.00014,2]
[328251158,1717110633840,-21253.80606028,0.00014,2]
[328251164,1717110640995,-667.54,0.0001399,3]
[328251165,1717110641005,-1661.33606084,0.00014,2]
[328251166,1717110641818,-952527.30007088,0.00014,2]
[328251167,1717110641827,-1040.82619804,0.00014,2]